[Event "Titled Tuesday Blitz February 21 Late 2023"]
[White "Naroditsky, Daniel"]
[Black "Urazayev, Arystanbek"]
[WhiteFideId "2026961"]
[BlackFideId "13709810"]
[WhiteElo "2618"]
[BlackElo "2460"]
[Result "1-0"]
[Round "09"]
[TimeControl "180+2"]
[Date "2023.02.21"]
[WhiteClock "0:00:03"]
[BlackClock "0:00:01"]

1. e4 {[%clk 0:02:31]}  c6 {[%clk 0:02:59]} 2. d4 {[%clk 0:02:31]}  d5 {[%clk 0:02:59]} 3. f3 {[%clk 0:02:32]}  Qb6 {[%clk 0:02:55]} 4. Nc3 {[%clk 0:02:29]}  dxe4 {[%clk 0:02:54]} 5. Nxe4 {[%clk 0:02:26]}  Nf6 {[%clk 0:02:52]} 6. Nc3 {[%clk 0:02:04]}  Bf5 {[%clk 0:02:50]} 7. Bd3 {[%clk 0:02:01]}  Bxd3 {[%clk 0:02:49]} 8. Qxd3 {[%clk 0:02:02]}  e6 {[%clk 0:02:50]} 9. Nge2 {[%clk 0:02:03]}  Nbd7 {[%clk 0:02:50]} 10. O-O {[%clk 0:02:04]}  Be7 {[%clk 0:02:51]} 11. Kh1 {[%clk 0:01:59]}  O-O {[%clk 0:02:50]} 12. Bg5 {[%clk 0:01:46]}  h6 {[%clk 0:02:49]} 13. Bh4 {[%clk 0:01:46]}  Rfe8 {[%clk 0:02:49]} 14. Bf2 {[%clk 0:01:38]}  Qa5 {[%clk 0:02:44]} 15. Ne4 {[%clk 0:01:37]}  Rad8 {[%clk 0:02:42]} 16. Qb3 {[%clk 0:01:34]}  Qa6 {[%clk 0:02:26]} 17. Nf4 {[%clk 0:01:28]}  c5 {[%clk 0:02:11]} 18. Nxc5 {[%clk 0:01:19]}  Nxc5 {[%clk 0:02:07]} 19. dxc5 {[%clk 0:01:20]}  Qc6 {[%clk 0:01:26]} 20. Qc4 {[%clk 0:01:08]}  Rd2 {[%clk 0:01:14]} 21. Be3 {[%clk 0:00:59]}  Rd7 {[%clk 0:01:14]} 22. Nd3 {[%clk 0:00:55]}  Nd5 {[%clk 0:01:13]} 23. Bd4 {[%clk 0:00:55]}  Nb6 {[%clk 0:01:04]} 24. Qb4 {[%clk 0:00:36]}  a5 {[%clk 0:00:58]} 25. Qxa5 {[%clk 0:00:21]}  Rxd4 {[%clk 0:00:50]} 26. Qxb6 {[%clk 0:00:21]}  Qd5 {[%clk 0:00:49]} 27. b4 {[%clk 0:00:15]}  Rh4 {[%clk 0:00:44]} 28. Qc7 {[%clk 0:00:11]}  Bf6 {[%clk 0:00:37]} 29. Rad1 {[%clk 0:00:11]}  Qxa2 {[%clk 0:00:36]} 30. Qxb7 {[%clk 0:00:07]}  Qxc2 {[%clk 0:00:37]} 31. c6 {[%clk 0:00:05]}  Rc4 {[%clk 0:00:22]} 32. b5 {[%clk 0:00:05]}  Rd8 {[%clk 0:00:19]} 33. Nf2 {[%clk 0:00:02]}  Qxf2 {[%clk 0:00:17]} 34. c7 {[%clk 0:00:01]}  Rxd1 {[%clk 0:00:13]} 35. c8=Q+ {[%clk 0:00:01]}  Kh7 {[%clk 0:00:10]} 36. Rxd1 {[%clk 0:00:02]}  Qc2 {[%clk 0:00:02]} 37. Qcd7 {[%clk 0:00:02]}  Rd4 {[%clk 0:00:01]} 38. Qxd4 {[%clk 0:00:02]}  Bxd4 {[%clk 0:00:01]} 39. Qe4+ {[%clk 0:00:03]} 1-0


[Site "https://www.chess.com"]

[Event "Titled Tuesday Blitz February 21 Late 2023"]
[White "Grigoriants, Sergey"]
[Black "Martinez Alcantara, Jose Eduardo"]
[WhiteFideId "4130804"]
[BlackFideId "3805662"]
[WhiteElo "2562"]
[BlackElo "2619"]
[Result "0-1"]
[Round "09"]
[TimeControl "180+2"]
[Date "2023.02.21"]
[WhiteClock "0:00:04"]
[BlackClock "0:00:11"]

1. d4 {[%clk 0:02:55]}  Nf6 {[%clk 0:02:58]} 2. c4 {[%clk 0:02:54]}  e6 {[%clk 0:02:58]} 3. Nc3 {[%clk 0:02:54]}  Bb4 {[%clk 0:02:58]} 4. e3 {[%clk 0:02:54]}  O-O {[%clk 0:02:58]} 5. Bd3 {[%clk 0:02:54]}  b6 {[%clk 0:02:56]} 6. Ne2 {[%clk 0:02:53]}  Bb7 {[%clk 0:02:57]} 7. O-O {[%clk 0:02:54]}  d5 {[%clk 0:02:55]} 8. cxd5 {[%clk 0:02:54]}  exd5 {[%clk 0:02:55]} 9. Bd2 {[%clk 0:02:54]}  a6 {[%clk 0:02:54]} 10. Rc1 {[%clk 0:02:49]}  Nbd7 {[%clk 0:02:53]} 11. f3 {[%clk 0:02:42]}  Re8 {[%clk 0:02:52]} 12. Ng3 {[%clk 0:02:40]}  c5 {[%clk 0:02:50]} 13. a3 {[%clk 0:02:35]}  Bxc3 {[%clk 0:02:45]} 14. bxc3 {[%clk 0:02:20]}  b5 {[%clk 0:02:35]} 15. Qc2 {[%clk 0:01:50]}  g6 {[%clk 0:02:30]} 16. Qb2 {[%clk 0:01:37]}  Bc6 {[%clk 0:02:23]} 17. Rce1 {[%clk 0:01:35]}  Qb6 {[%clk 0:02:14]} 18. Kh1 {[%clk 0:01:13]}  Qb7 {[%clk 0:02:14]} 19. Bc1 {[%clk 0:01:07]}  Re6 {[%clk 0:02:05]} 20. Qf2 {[%clk 0:01:06]}  Rf8 {[%clk 0:01:59]} 21. e4 {[%clk 0:00:59]}  cxd4 {[%clk 0:01:52]} 22. cxd4 {[%clk 0:00:56]}  Ne8 {[%clk 0:01:13]} 23. e5 {[%clk 0:00:38]}  Ng7 {[%clk 0:01:13]} 24. Ne2 {[%clk 0:00:32]}  f6 {[%clk 0:00:50]} 25. Nf4 {[%clk 0:00:22]}  Ree8 {[%clk 0:00:46]} 26. exf6 {[%clk 0:00:20]}  Nxf6 {[%clk 0:00:46]} 27. Bd2 {[%clk 0:00:18]}  Rxe1 {[%clk 0:00:36]} 28. Rxe1 {[%clk 0:00:18]}  Re8 {[%clk 0:00:37]} 29. Re5 {[%clk 0:00:18]}  Nd7 {[%clk 0:00:19]} 30. Rxe8+ {[%clk 0:00:17]}  Nxe8 {[%clk 0:00:20]} 31. Qe3 {[%clk 0:00:18]}  Nf8 {[%clk 0:00:21]} 32. Bb4 {[%clk 0:00:17]}  Qf7 {[%clk 0:00:20]} 33. h4 {[%clk 0:00:17]}  Ng7 {[%clk 0:00:16]} 34. Qe5 {[%clk 0:00:17]}  Nd7 {[%clk 0:00:07]} 35. Qc7 {[%clk 0:00:17]}  Qf6 {[%clk 0:00:05]} 36. g3 {[%clk 0:00:12]}  Ne8 {[%clk 0:00:05]} 37. Qc8 {[%clk 0:00:10]}  Kf7 {[%clk 0:00:03]} 38. Nxd5 {[%clk 0:00:08]}  Qe6 {[%clk 0:00:03]} 39. Nf4 {[%clk 0:00:06]}  Bxf3+ {[%clk 0:00:03]} 40. Kh2 {[%clk 0:00:06]}  Qc6 {[%clk 0:00:02]} 41. Qxc6 {[%clk 0:00:06]}  Bxc6 {[%clk 0:00:03]} 42. d5 {[%clk 0:00:06]}  Bb7 {[%clk 0:00:03]} 43. h5 {[%clk 0:00:06]}  g5 {[%clk 0:00:03]} 44. Nh3 {[%clk 0:00:06]}  h6 {[%clk 0:00:03]} 45. Bg6+ {[%clk 0:00:05]}  Kg7 {[%clk 0:00:03]} 46. Bxe8 {[%clk 0:00:06]}  Nf6 {[%clk 0:00:03]} 47. Bc3 {[%clk 0:00:06]}  Bxd5 {[%clk 0:00:03]} 48. Nf2 {[%clk 0:00:06]}  Bf3 {[%clk 0:00:04]} 49. g4 {[%clk 0:00:06]}  a5 {[%clk 0:00:04]} 50. Kg3 {[%clk 0:00:06]}  Bd5 {[%clk 0:00:04]} 51. Bxb5 {[%clk 0:00:06]}  Kf7 {[%clk 0:00:04]} 52. Bxf6 {[%clk 0:00:05]}  Kxf6 {[%clk 0:00:05]} 53. Bd3 {[%clk 0:00:06]}  Ke5 {[%clk 0:00:06]} 54. Bf5 {[%clk 0:00:06]}  Kd4 {[%clk 0:00:07]} 55. Nd3 {[%clk 0:00:05]}  Bc4 {[%clk 0:00:08]} 56. Nc1 {[%clk 0:00:05]}  Ke3 {[%clk 0:00:08]} 57. Bg6 {[%clk 0:00:04]}  Kd2 {[%clk 0:00:08]} 58. Na2 {[%clk 0:00:04]}  Bxa2 {[%clk 0:00:07]} 59. Kf3 {[%clk 0:00:04]}  Bd5+ {[%clk 0:00:07]} 60. Be4 {[%clk 0:00:04]}  Bb3 {[%clk 0:00:08]} 61. Bc6 {[%clk 0:00:04]}  Bd1+ {[%clk 0:00:08]} 62. Kg3 {[%clk 0:00:04]}  Kc3 {[%clk 0:00:08]} 63. Bd7 {[%clk 0:00:03]}  Kb2 {[%clk 0:00:08]} 64. a4 {[%clk 0:00:02]}  Ka3 {[%clk 0:00:09]} 65. Kf2 {[%clk 0:00:02]}  Bxa4 {[%clk 0:00:10]} 66. Bf5 {[%clk 0:00:02]}  Kb2 {[%clk 0:00:10]} 67. Ke3 {[%clk 0:00:03]}  Bb3 {[%clk 0:00:10]} 68. Kd4 {[%clk 0:00:04]}  a4 {[%clk 0:00:11]} 0-1


[Site "https://www.chess.com"]

[Event "Titled Tuesday Blitz February 21 Late 2023"]
[White "Dourerassou, Jonathan"]
[Black "Kravtsiv, Martyn"]
[WhiteFideId "628050"]
[BlackFideId "14113147"]
[WhiteElo "2414"]
[BlackElo "2598"]
[Result "1-0"]
[Round "09"]
[TimeControl "180+2"]
[Date "2023.02.21"]
[WhiteClock "0:01:07"]
[BlackClock "0:00:17"]

1. d4 {[%clk 0:03:00]}  Nf6 {[%clk 0:02:56]} 2. Bg5 {[%clk 0:02:59]}  d5 {[%clk 0:02:54]} 3. Bxf6 {[%clk 0:02:58]}  exf6 {[%clk 0:02:50]} 4. Nf3 {[%clk 0:02:58]}  Bd6 {[%clk 0:02:43]} 5. g3 {[%clk 0:02:58]}  O-O {[%clk 0:02:42]} 6. Bg2 {[%clk 0:02:58]}  Re8 {[%clk 0:02:42]} 7. O-O {[%clk 0:02:58]}  c6 {[%clk 0:02:42]} 8. e3 {[%clk 0:02:59]}  Na6 {[%clk 0:02:36]} 9. Nbd2 {[%clk 0:02:58]}  Nc7 {[%clk 0:02:37]} 10. c4 {[%clk 0:02:58]}  dxc4 {[%clk 0:02:33]} 11. Nxc4 {[%clk 0:02:59]}  Bf8 {[%clk 0:02:33]} 12. Rc1 {[%clk 0:02:57]}  a5 {[%clk 0:02:33]} 13. a3 {[%clk 0:02:56]}  Nd5 {[%clk 0:02:32]} 14. Re1 {[%clk 0:02:53]}  Bf5 {[%clk 0:02:30]} 15. Nfd2 {[%clk 0:02:32]}  Be6 {[%clk 0:02:27]} 16. e4 {[%clk 0:02:30]}  Nb6 {[%clk 0:02:27]} 17. Nxb6 {[%clk 0:02:24]}  Qxb6 {[%clk 0:02:28]} 18. d5 {[%clk 0:02:24]}  Bd7 {[%clk 0:02:17]} 19. Nc4 {[%clk 0:02:23]}  Qa7 {[%clk 0:02:09]} 20. e5 {[%clk 0:02:16]}  cxd5 {[%clk 0:01:36]} 21. Bxd5 {[%clk 0:02:17]}  Rad8 {[%clk 0:01:34]} 22. Nd6 {[%clk 0:01:50]}  Bxd6 {[%clk 0:01:28]} 23. exd6 {[%clk 0:01:51]}  Qa6 {[%clk 0:00:23]} 24. Qh5 {[%clk 0:01:08]}  Rxe1+ {[%clk 0:00:17]} 25. Rxe1 {[%clk 0:01:09]}  Qxd6 {[%clk 0:00:17]} 26. Qxf7+ {[%clk 0:01:08]}  Kh8 {[%clk 0:00:17]} 27. Re7 {[%clk 0:01:07]} 1-0


[Site "https://www.chess.com"]

[Event "Titled Tuesday Blitz February 21 Late 2023"]
[White "Rustemov, Alexander"]
[Black "Risteski, Emil"]
[WhiteFideId "4119002"]
[BlackFideId "15005267"]
[WhiteElo "2525"]
[BlackElo "2366"]
[Result "1/2-1/2"]
[Round "09"]
[TimeControl "180+2"]
[Date "2023.02.21"]
[WhiteClock "0:00:21"]
[BlackClock "0:00:09"]

1. d4 {[%clk 0:02:55]}  d5 {[%clk 0:02:59]} 2. c4 {[%clk 0:02:53]}  dxc4 {[%clk 0:02:59]} 3. Nf3 {[%clk 0:02:53]}  c5 {[%clk 0:02:58]} 4. e3 {[%clk 0:02:53]}  cxd4 {[%clk 0:02:57]} 5. Bxc4 {[%clk 0:02:38]}  Qc7 {[%clk 0:02:39]} 6. Qxd4 {[%clk 0:02:30]}  Nc6 {[%clk 0:02:38]} 7. Qd1 {[%clk 0:02:22]}  Nf6 {[%clk 0:02:32]} 8. O-O {[%clk 0:02:22]}  e6 {[%clk 0:02:29]} 9. a3 {[%clk 0:02:13]}  Bd6 {[%clk 0:02:27]} 10. Be2 {[%clk 0:02:02]}  O-O {[%clk 0:02:24]} 11. b4 {[%clk 0:02:00]}  Rd8 {[%clk 0:02:12]} 12. Nbd2 {[%clk 0:01:59]}  Bd7 {[%clk 0:01:50]} 13. Bb2 {[%clk 0:01:58]}  Rac8 {[%clk 0:01:47]} 14. Rc1 {[%clk 0:01:52]}  Qb8 {[%clk 0:01:46]} 15. Qb3 {[%clk 0:01:47]}  Ne5 {[%clk 0:01:43]} 16. Rfd1 {[%clk 0:01:34]}  Bc6 {[%clk 0:01:40]} 17. h3 {[%clk 0:01:32]}  a6 {[%clk 0:01:25]} 18. a4 {[%clk 0:01:26]}  Bd5 {[%clk 0:01:23]} 19. Qa3 {[%clk 0:01:19]}  Nxf3+ {[%clk 0:00:59]} 20. Nxf3 {[%clk 0:01:07]}  a5 {[%clk 0:00:59]} 21. Bxf6 {[%clk 0:01:01]}  gxf6 {[%clk 0:00:56]} 22. Qb2 {[%clk 0:01:02]}  Bxf3 {[%clk 0:00:36]} 23. Bxf3 {[%clk 0:01:02]}  Be5 {[%clk 0:00:36]} 24. Qb3 {[%clk 0:00:59]}  axb4 {[%clk 0:00:36]} 25. Qxb4 {[%clk 0:00:59]}  b6 {[%clk 0:00:35]} 26. Rxd8+ {[%clk 0:00:54]}  Rxd8 {[%clk 0:00:34]} 27. Rb1 {[%clk 0:00:55]}  Qd6 {[%clk 0:00:16]} 28. Qxb6 {[%clk 0:00:49]}  Rb8 {[%clk 0:00:16]} 29. Qxb8+ {[%clk 0:00:46]}  Qxb8 {[%clk 0:00:15]} 30. Rxb8+ {[%clk 0:00:47]}  Bxb8 {[%clk 0:00:16]} 31. a5 {[%clk 0:00:48]}  Kf8 {[%clk 0:00:16]} 32. a6 {[%clk 0:00:43]}  Ke7 {[%clk 0:00:15]} 33. g4 {[%clk 0:00:35]}  h6 {[%clk 0:00:14]} 34. Kf1 {[%clk 0:00:35]}  Kd6 {[%clk 0:00:14]} 35. Ke2 {[%clk 0:00:35]}  Ke5 {[%clk 0:00:12]} 36. Kd3 {[%clk 0:00:35]}  Ba7 {[%clk 0:00:10]} 37. Bc6 {[%clk 0:00:35]}  Kd6 {[%clk 0:00:10]} 38. Ba4 {[%clk 0:00:34]}  f5 {[%clk 0:00:07]} 39. f4 {[%clk 0:00:28]}  fxg4 {[%clk 0:00:06]} 40. hxg4 {[%clk 0:00:28]}  f6 {[%clk 0:00:07]} 41. Ke4 {[%clk 0:00:26]}  Bb6 {[%clk 0:00:06]} 42. Bb3 {[%clk 0:00:26]}  Ba7 {[%clk 0:00:06]} 43. Kf3 {[%clk 0:00:27]}  Bb6 {[%clk 0:00:06]} 44. Bc4 {[%clk 0:00:27]}  Ba7 {[%clk 0:00:06]} 45. Bd3 {[%clk 0:00:22]}  Bb6 {[%clk 0:00:06]} 46. Bf1 {[%clk 0:00:22]}  Ba7 {[%clk 0:00:06]} 47. Ke4 {[%clk 0:00:22]}  Bb6 {[%clk 0:00:06]} 48. Kd3 {[%clk 0:00:23]}  Ba7 {[%clk 0:00:07]} 49. e4 {[%clk 0:00:23]}  e5 {[%clk 0:00:06]} 50. fxe5+ {[%clk 0:00:19]}  fxe5 {[%clk 0:00:06]} 51. Kc4 {[%clk 0:00:19]}  Bb6 {[%clk 0:00:04]} 52. Kb5 {[%clk 0:00:19]}  Ba7 {[%clk 0:00:05]} 53. Be2 {[%clk 0:00:20]}  Be3 {[%clk 0:00:05]} 54. Bc4 {[%clk 0:00:20]}  Ba7 {[%clk 0:00:05]} 55. Bd5 {[%clk 0:00:20]}  Be3 {[%clk 0:00:06]} 56. Kc4 {[%clk 0:00:21]}  Ba7 {[%clk 0:00:06]} 57. Kd3 {[%clk 0:00:21]}  Bb6 {[%clk 0:00:06]} 58. Ke2 {[%clk 0:00:22]}  Ke7 {[%clk 0:00:07]} 59. Bc6 {[%clk 0:00:21]}  Ba7 {[%clk 0:00:06]} 60. Bb7 {[%clk 0:00:21]}  Bb6 {[%clk 0:00:06]} 61. Bc8 {[%clk 0:00:21]}  Ba7 {[%clk 0:00:06]} 62. Bf5 {[%clk 0:00:22]}  Bb6 {[%clk 0:00:06]} 63. Kf3 {[%clk 0:00:23]}  Kf6 {[%clk 0:00:06]} 64. Kg3 {[%clk 0:00:24]}  Be3 {[%clk 0:00:05]} 65. Kh4 {[%clk 0:00:25]}  Bb6 {[%clk 0:00:04]} 66. Kh5 {[%clk 0:00:26]}  Kg7 {[%clk 0:00:04]} 67. Be6 {[%clk 0:00:24]}  Ba7 {[%clk 0:00:04]} 68. Bd5 {[%clk 0:00:22]}  Bb6 {[%clk 0:00:03]} 69. Bc6 {[%clk 0:00:22]}  Ba7 {[%clk 0:00:03]} 70. g5 {[%clk 0:00:21]}  hxg5 {[%clk 0:00:04]} 71. Kxg5 {[%clk 0:00:22]}  Kf7 {[%clk 0:00:04]} 72. Kf5 {[%clk 0:00:23]}  Bd4 {[%clk 0:00:05]} 73. Bd7 {[%clk 0:00:19]}  Ke7 {[%clk 0:00:05]} 74. Be6 {[%clk 0:00:19]}  Kd6 {[%clk 0:00:05]} 75. Bc4 {[%clk 0:00:19]}  Ba7 {[%clk 0:00:06]} 76. Kf6 {[%clk 0:00:19]}  Bd4 {[%clk 0:00:07]} 77. Kf7 {[%clk 0:00:19]}  Ba7 {[%clk 0:00:07]} 78. Ke8 {[%clk 0:00:20]}  Kc7 {[%clk 0:00:07]} 79. Ke7 {[%clk 0:00:20]}  Bd4 {[%clk 0:00:07]} 80. Ke6 {[%clk 0:00:20]}  Kb6 {[%clk 0:00:07]} 81. Kd5 {[%clk 0:00:20]}  Ka7 {[%clk 0:00:08]} 82. Bd3 {[%clk 0:00:21]}  Ba1 {[%clk 0:00:09]} 1/2-1/2


[Site "https://www.chess.com"]

[Event "Titled Tuesday Blitz February 21 Late 2023"]
[White "Feng, Eric"]
[Black "Stoyanov, Tsvetan"]
[WhiteFideId "30952590"]
[BlackFideId "2917173"]
[WhiteElo "1951"]
[BlackElo "2454"]
[Result "0-1"]
[Round "09"]
[TimeControl "180+2"]
[Date "2023.02.21"]
[WhiteClock "0:00:36"]
[BlackClock "0:00:17"]

1. d4 {[%clk 0:02:59]}  d5 {[%clk 0:02:59]} 2. c4 {[%clk 0:02:57]}  e6 {[%clk 0:03:00]} 3. Nf3 {[%clk 0:02:58]}  Nf6 {[%clk 0:03:00]} 4. g3 {[%clk 0:02:58]}  Be7 {[%clk 0:03:00]} 5. Bg2 {[%clk 0:02:58]}  O-O {[%clk 0:03:00]} 6. O-O {[%clk 0:02:59]}  dxc4 {[%clk 0:03:01]} 7. Ne5 {[%clk 0:02:59]}  Nc6 {[%clk 0:03:01]} 8. Bxc6 {[%clk 0:02:59]}  bxc6 {[%clk 0:03:02]} 9. Nxc6 {[%clk 0:02:59]}  Qe8 {[%clk 0:03:02]} 10. Nxe7+ {[%clk 0:03:00]}  Qxe7 {[%clk 0:03:03]} 11. Qc2 {[%clk 0:03:00]}  e5 {[%clk 0:02:54]} 12. dxe5 {[%clk 0:02:57]}  Qxe5 {[%clk 0:02:55]} 13. Nc3 {[%clk 0:02:57]}  Bh3 {[%clk 0:02:39]} 14. Rd1 {[%clk 0:02:52]}  Bf5 {[%clk 0:02:33]} 15. Qa4 {[%clk 0:02:50]}  Ne4 {[%clk 0:02:13]} 16. Qxc4 {[%clk 0:02:41]}  Nxc3 {[%clk 0:02:12]} 17. Qxc3 {[%clk 0:02:42]}  Qxe2 {[%clk 0:02:09]} 18. Bf4 {[%clk 0:02:30]}  Rfe8 {[%clk 0:01:35]} 19. Re1 {[%clk 0:02:25]}  Qb5 {[%clk 0:01:34]} 20. b3 {[%clk 0:02:22]}  Bh3 {[%clk 0:01:27]} 21. Rad1 {[%clk 0:02:03]}  h6 {[%clk 0:00:58]} 22. f3 {[%clk 0:01:52]}  Re2 {[%clk 0:00:49]} 23. Qc4 {[%clk 0:01:35]}  Qb6+ {[%clk 0:00:37]} 24. Rd4 {[%clk 0:01:03]}  Rxe1+ {[%clk 0:00:33]} 25. Kf2 {[%clk 0:01:04]}  Rf1+ {[%clk 0:00:33]} 26. Ke2 {[%clk 0:00:58]}  Re8+ {[%clk 0:00:33]} 27. Be3 {[%clk 0:00:58]}  Qe6 {[%clk 0:00:28]} 28. Qc3 {[%clk 0:00:55]}  Qf5 {[%clk 0:00:22]} 29. Rf4 {[%clk 0:00:44]}  Qb5+ {[%clk 0:00:22]} 30. Rc4 {[%clk 0:00:40]}  Rh1 {[%clk 0:00:21]} 31. a4 {[%clk 0:00:38]}  Rxh2+ {[%clk 0:00:19]} 32. Kd3 {[%clk 0:00:38]}  Qf5+ {[%clk 0:00:18]} 33. Kd4 {[%clk 0:00:36]}  Rd8# {[%clk 0:00:17]} 0-1


[Site "https://www.chess.com"]

[Event "Titled Tuesday Blitz February 21 Late 2023"]
[White "Shapiro, Viktor"]
[Black "Maksimovic, Bojan"]
[WhiteFideId "4175700"]
[BlackFideId "14408120"]
[WhiteElo "2192"]
[BlackElo "2486"]
[Result "0-1"]
[Round "09"]
[TimeControl "180+2"]
[Date "2023.02.21"]
[WhiteClock "0:02:08"]
[BlackClock "0:02:06"]

1. c4 {[%clk 0:03:00]}  Nf6 {[%clk 0:02:59]} 2. Nc3 {[%clk 0:03:01]}  g6 {[%clk 0:03:00]} 3. g3 {[%clk 0:03:01]}  Bg7 {[%clk 0:03:00]} 4. Bg2 {[%clk 0:03:02]}  O-O {[%clk 0:03:01]} 5. Nf3 {[%clk 0:03:02]}  d6 {[%clk 0:03:01]} 6. d3 {[%clk 0:03:03]}  e5 {[%clk 0:03:01]} 7. Rb1 {[%clk 0:03:02]}  a5 {[%clk 0:03:01]} 8. a3 {[%clk 0:03:02]}  Nc6 {[%clk 0:03:02]} 9. b4 {[%clk 0:03:02]}  axb4 {[%clk 0:03:03]} 10. axb4 {[%clk 0:03:03]}  Re8 {[%clk 0:03:03]} 11. O-O {[%clk 0:03:00]}  h6 {[%clk 0:03:02]} 12. b5 {[%clk 0:02:56]}  Nd4 {[%clk 0:03:03]} 13. e3 {[%clk 0:02:56]}  Nxf3+ {[%clk 0:03:01]} 14. Bxf3 {[%clk 0:02:57]}  e4 {[%clk 0:02:56]} 15. Nxe4 {[%clk 0:02:53]}  Nxe4 {[%clk 0:02:56]} 16. Bxe4 {[%clk 0:02:54]}  Rxe4 {[%clk 0:02:56]} 17. dxe4 {[%clk 0:02:53]}  Bh3 {[%clk 0:02:40]} 18. Qe2 {[%clk 0:02:34]}  Bxf1 {[%clk 0:02:26]} 19. Kxf1 {[%clk 0:02:34]}  b6 {[%clk 0:02:19]} 20. Kg2 {[%clk 0:02:18]}  Qe8 {[%clk 0:02:11]} 21. Qd3 {[%clk 0:02:17]}  Ra2 {[%clk 0:02:10]} 22. Bd2 {[%clk 0:02:13]}  Rxd2 {[%clk 0:02:08]} 23. Qxd2 {[%clk 0:02:08]}  Qxe4+ {[%clk 0:02:08]} 24. f3 {[%clk 0:02:09]}  Qxb1 {[%clk 0:02:08]} 25. Qe2 {[%clk 0:02:08]}  Qb2 {[%clk 0:02:06]} 0-1


[Site "https://www.chess.com"]

[Event "Titled Tuesday Blitz February 21 Late 2023"]
[White "Guzman, Christopher"]
[Black "Bilych, Olexiy"]
[WhiteFideId "6405096"]
[BlackFideId "14156504"]
[WhiteElo "2271"]
[BlackElo "2441"]
[Result "1-0"]
[Round "09"]
[TimeControl "180+2"]
[Date "2023.02.21"]
[WhiteClock "0:01:29"]
[BlackClock "0:00:03"]

1. e4 {[%clk 0:03:00]}  c5 {[%clk 0:02:59]} 2. Nf3 {[%clk 0:02:52]}  d6 {[%clk 0:02:59]} 3. d4 {[%clk 0:02:53]}  cxd4 {[%clk 0:03:00]} 4. Nxd4 {[%clk 0:02:53]}  Nf6 {[%clk 0:03:00]} 5. Nc3 {[%clk 0:02:54]}  a6 {[%clk 0:03:01]} 6. h4 {[%clk 0:02:54]}  e5 {[%clk 0:02:56]} 7. Nb3 {[%clk 0:02:53]}  Be6 {[%clk 0:02:50]} 8. f4 {[%clk 0:02:53]}  g6 {[%clk 0:02:25]} 9. h5 {[%clk 0:02:50]}  Nbd7 {[%clk 0:02:10]} 10. hxg6 {[%clk 0:02:49]}  fxg6 {[%clk 0:02:11]} 11. Be2 {[%clk 0:02:42]}  Be7 {[%clk 0:02:09]} 12. Be3 {[%clk 0:02:41]}  O-O {[%clk 0:02:05]} 13. Qd2 {[%clk 0:02:39]}  b5 {[%clk 0:02:01]} 14. a3 {[%clk 0:02:38]}  Qc7 {[%clk 0:01:40]} 15. O-O-O {[%clk 0:02:37]}  Rac8 {[%clk 0:01:41]} 16. Kb1 {[%clk 0:02:36]}  exf4 {[%clk 0:01:34]} 17. Bxf4 {[%clk 0:02:34]}  Ne5 {[%clk 0:01:34]} 18. Nd4 {[%clk 0:02:23]}  Bf7 {[%clk 0:01:32]} 19. Nd5 {[%clk 0:02:13]}  Nxe4 {[%clk 0:01:17]} 20. Nxe7+ {[%clk 0:02:12]}  Qxe7 {[%clk 0:01:18]} 21. Qe3 {[%clk 0:02:11]}  d5 {[%clk 0:01:03]} 22. Rh6 {[%clk 0:02:01]}  Nc4 {[%clk 0:00:54]} 23. Bxc4 {[%clk 0:01:36]}  Rxc4 {[%clk 0:00:53]} 24. Rdh1 {[%clk 0:01:33]}  Be8 {[%clk 0:00:31]} 25. Rxh7 {[%clk 0:01:32]}  Qxh7 {[%clk 0:00:32]} 26. Rxh7 {[%clk 0:01:32]}  Kxh7 {[%clk 0:00:33]} 27. Qh3+ {[%clk 0:01:31]}  Kg8 {[%clk 0:00:30]} 28. Be5 {[%clk 0:01:31]}  Kf7 {[%clk 0:00:03]} 29. Qh7# {[%clk 0:01:29]} 1-0


[Site "https://www.chess.com"]

[Event "Titled Tuesday Blitz February 21 Late 2023"]
[White "Melian, Juan Sebastian"]
[Black "Javakhadze, Zurab"]
[WhiteFideId "3706575"]
[BlackFideId "13603647"]
[WhiteElo "2293"]
[BlackElo "2459"]
[Result "1-0"]
[Round "09"]
[TimeControl "180+2"]
[Date "2023.02.21"]
[WhiteClock "0:00:09"]
[BlackClock "0:00:05"]

1. d4 {[%clk 0:02:57]}  Nf6 {[%clk 0:02:57]} 2. c4 {[%clk 0:02:56]}  e6 {[%clk 0:02:58]} 3. Nc3 {[%clk 0:02:57]}  Bb4 {[%clk 0:02:56]} 4. Qc2 {[%clk 0:02:57]}  O-O {[%clk 0:02:55]} 5. Nf3 {[%clk 0:02:52]}  c5 {[%clk 0:02:54]} 6. dxc5 {[%clk 0:02:43]}  Nc6 {[%clk 0:02:46]} 7. e4 {[%clk 0:02:35]}  Bxc5 {[%clk 0:02:44]} 8. a3 {[%clk 0:02:25]}  Ng4 {[%clk 0:02:38]} 9. Nd1 {[%clk 0:02:19]}  Qa5+ {[%clk 0:02:29]} 10. Bd2 {[%clk 0:02:14]}  Qb6 {[%clk 0:02:28]} 11. Bc3 {[%clk 0:02:13]}  d5 {[%clk 0:02:22]} 12. h3 {[%clk 0:01:51]}  d4 {[%clk 0:02:06]} 13. Bd2 {[%clk 0:01:31]}  d3 {[%clk 0:01:56]} 14. Bxd3 {[%clk 0:01:28]}  Nxf2 {[%clk 0:01:54]} 15. Nxf2 {[%clk 0:01:24]}  Bxf2+ {[%clk 0:01:55]} 16. Ke2 {[%clk 0:01:25]}  e5 {[%clk 0:01:48]} 17. Raf1 {[%clk 0:01:04]}  Nd4+ {[%clk 0:01:47]} 18. Nxd4 {[%clk 0:01:04]}  Bxd4 {[%clk 0:01:48]} 19. b4 {[%clk 0:01:02]}  a5 {[%clk 0:01:39]} 20. c5 {[%clk 0:01:01]}  Qg6 {[%clk 0:01:30]} 21. g4 {[%clk 0:00:50]}  axb4 {[%clk 0:01:27]} 22. Bxb4 {[%clk 0:00:45]}  Bxg4+ {[%clk 0:01:10]} 23. hxg4 {[%clk 0:00:44]}  Qxg4+ {[%clk 0:01:11]} 24. Ke1 {[%clk 0:00:41]}  Qg3+ {[%clk 0:01:09]} 25. Kd1 {[%clk 0:00:39]}  Rad8 {[%clk 0:01:09]} 26. Be1 {[%clk 0:00:23]}  Qg4+ {[%clk 0:00:47]} 27. Kc1 {[%clk 0:00:17]}  Bxc5 {[%clk 0:00:41]} 28. Kb1 {[%clk 0:00:17]}  Qe6 {[%clk 0:00:33]} 29. Bc4 {[%clk 0:00:16]}  Qb6+ {[%clk 0:00:33]} 30. Qb3 {[%clk 0:00:16]}  Qxb3+ {[%clk 0:00:16]} 31. Bxb3 {[%clk 0:00:17]}  g6 {[%clk 0:00:17]} 32. Bc3 {[%clk 0:00:13]}  Rd3 {[%clk 0:00:15]} 33. Kc2 {[%clk 0:00:13]}  Re3 {[%clk 0:00:13]} 34. Re1 {[%clk 0:00:13]}  Rf3 {[%clk 0:00:07]} 35. Rhf1 {[%clk 0:00:13]}  Rf4 {[%clk 0:00:05]} 36. Bxe5 {[%clk 0:00:12]}  Rxf1 {[%clk 0:00:06]} 37. Rxf1 {[%clk 0:00:13]}  h5 {[%clk 0:00:05]} 38. a4 {[%clk 0:00:12]}  h4 {[%clk 0:00:05]} 39. Bf6 {[%clk 0:00:09]} 1-0


[Site "https://www.chess.com"]